[Event "British KO-ch Pre 2019"]
[Site "London"]
[Date "2019.11.30"]
[Round "1.1"]
[White "Claridge-Hansen, William"]
[Black "Fernandez, Daniel Howard"]
[Result "0-1"]
[ECO "A10"]
[WhiteElo "2290"]
[BlackElo "2444"]
[Annotator "ChessBase"]
[PlyCount "44"]
[EventDate "2019.11.30"]
[EventType "k.o."]
[EventCountry "ENG"]
[SourceTitle "playchess.com"]
[Source "ChessBase"]
[SourceQuality "1"]
[TimeControl "600+5"]

1. c4 {[%emt 0:00:00]} b6 {[%emt 0:00:00]} 2. Nc3 {[%emt 0:00:04]} Bb7 {[%emt 0:00:00]} 3. e4 {[%emt 0:00:04]} a5 {[%emt 0:00:35]} 4. d4 {[%emt 0:00:48]} e5 {[%emt 0:00:02]} 5. Nf3 {[%emt 0:01:02]} Bb4 {[%emt 0:00:44]} 6. Nxe5 {[%emt 0:00:55]} Qe7 {[%emt 0:00:09]} 7. Bd3 {[%emt 0:00:47]} c5 {[%emt 0:00:02]} 8. Nf3 {[%emt 0:02:32]} f5 {[%emt 0:01:13]} 9. Bg5 {[%emt 0:00:53]} Nf6 {[%emt 0:00:03]} 10. e5 {[%emt 0:00:42]} h6 {[%emt 0:00:06]} 11. Bxf6 {[%emt 0:01:13]} gxf6 {[%emt 0:00:02]} 12. O-O {[%emt 0:00:44]} cxd4 {[%emt 0:00:43]} 13. Nxd4 {[%emt 0:00:42]} Bxc3 {[%emt 0:00:03]} 14. Nxf5 {[%emt 0:00:14]} Qxe5 {[%emt 0:00:05]} 15. bxc3 {[%emt 0:00:01]} Kd8 {[%emt 0:00:17]} 16. Re1 {[%emt 0:00:12]} Qc5 {[%emt 0:00:26]} 17. Qh5 {[%emt 0:00:02]} Kc7 {[%emt 0:00:35]} 18. Qf7 {[%emt 0:00:16]} Nc6 {[%emt 0:00:13]} 19. Ng3 {[%emt 0:00:13]} Ne5 {[%emt 0:00:19]} 20. Rxe5 {[%emt 0:00:07]} fxe5 {[%emt 0:00:04]} 21. Ne4 {[%emt 0:00:05]} Bxe4 {[%emt 0:00:04]} 22. Bxe4 {[%emt 0:00:00]} Raf8 {[%emt 0:00:04]} 0-1

[Event "British KO-ch Pre 2019"]
[Site "London"]
[Date "2019.11.30"]
[Round "1.2"]
[White "Clarke, Brandon G I"]
[Black "Wadsworth, Matthew J"]
[Result "1-0"]
[ECO "B48"]
[WhiteElo "2431"]
[BlackElo "2401"]
[Annotator "ChessBase"]
[PlyCount "63"]
[EventDate "2019.11.30"]
[EventType "k.o."]
[EventCountry "ENG"]
[SourceTitle "playchess.com"]
[Source "ChessBase"]
[SourceQuality "1"]
[TimeControl "600+5"]

1. e4 {[%emt 0:00:00]} c5 {[%emt 0:00:00]} 2. Nf3 {[%emt 0:00:00]} e6 {[%emt 0:00:00]} 3. d4 {[%emt 0:00:02]} cxd4 {[%emt 0:00:03]} 4. Nxd4 {[%emt 0:00:01]} Nc6 {[%emt 0:00:05]} 5. Nc3 {[%emt 0:00:02]} Qc7 {[%emt 0:00:09]} 6. Be3 {[%emt 0:00:03]} a6 {[%emt 0:00:03]} 7. a3 {[%emt 0:00:02]} Nf6 {[%emt 0:00:19]} 8. f4 {[%emt 0:00:08]} Nxd4 {[%emt 0:00:54]} 9. Bxd4 {[%emt 0:00:19]} Qxf4 {[%emt 0:00:58]} 10. g3 {[%emt 0:00:03]} Qc7 {[%emt 0:00:14]} 11. e5 {[%emt 0:00:04]} Nd5 {[%emt 0:00:33]} 12. Ne4 {[%emt 0:02:23]} b5 {[%emt 0:00:29]} 13. Bg2 {[%emt 0:00:10]} Bb7 {[%emt 0:00:17]} 14. O-O {[%emt 0:00:03]} Be7 {[%emt 0:00:38]} 15. Qg4 {[%emt 0:02:00]} O-O-O {[%emt 0:01:16]} 16. Rxf7 {[%emt 0:00:16]} Kb8 {[%emt 0:00:31]} 17. c3 {[%emt 0:01:00]} h5 {[%emt 0:00:21]} 18. Qe2 {[%emt 0:00:24]} Ka8 {[%emt 0:01:22]} 19. a4 {[%emt 0:00:04]} Qc4 {[%emt 0:00:37]} 20. Qxc4 {[%emt 0:00:02]} bxc4 {[%emt 0:00:01]} 21. Nd2 {[%emt 0:00:01]} Rdf8 {[%emt 0:01:39]} 22. Raf1 {[%emt 0:00:31]} Rxf7 {[%emt 0:00:44]} 23. Rxf7 {[%emt 0:00:01]} Bd8 {[%emt 0:00:01]} 24. Rxd7 {[%emt 0:00:36]} Bc8 {[%emt 0:00:27]} 25. Rxg7 {[%emt 0:00:21]} h4 {[%emt 0:00:12]} 26. Nxc4 {[%emt 0:00:06]} hxg3 {[%emt 0:00:04]} 27. hxg3 {[%emt 0:00:07]} Kb8 {[%emt 0:00:05]} 28. a5 {[%emt 0:00:21]} Bc7 {[%emt 0:00:09]} 29. b4 {[%emt 0:00:10]} Rf8 {[%emt 0:00:04]} 30. Nb6 {[%emt 0:00:38]} Nxb6 {[%emt 0:00:08]} 31. axb6 {[%emt 0:00:01]} Bd8 {[%emt 0:00:03]} 32. Bc5 {[%emt 0:00:02]} 1-0

[Event "British KO-ch Pre 2019"]
[Site "London"]
[Date "2019.11.30"]
[Round "1.3"]
[White "Pein, Jonathan"]
[Black "Merry, Alan B"]
[Result "0-1"]
[ECO "B20"]
[WhiteElo "2151"]
[BlackElo "2426"]
[Annotator "ChessBase"]
[PlyCount "72"]
[EventDate "2019.11.30"]
[EventType "k.o."]
[EventCountry "ENG"]
[SourceTitle "playchess.com"]
[Source "ChessBase"]
[SourceQuality "1"]
[TimeControl "600+5"]

1. g3 {[%emt 0:00:00]} c5 {[%emt 0:00:07]} 2. Bg2 {[%emt 0:00:00]} g6 {[%emt 0:00:14]} 3. e4 {[%emt 0:00:00]} Bg7 {[%emt 0:00:01]} 4. Ne2 {[%emt 0:00:01]} Nc6 {[%emt 0:00:02]} 5. c3 {[%emt 0:00:03]} e5 {[%emt 0:00:01]} 6. O-O {[%emt 0:00:02]} Nge7 {[%emt 0:00:02]} 7. d3 {[%emt 0:00:06]} O-O {[%emt 0:00:03]} 8. Be3 {[%emt 0:00:02]} d6 {[%emt 0:00:20]} 9. d4 {[%emt 0:00:01]} exd4 {[%emt 0:01:10]} 10. cxd4 {[%emt 0:00:01]} Qb6 {[%emt 0:01:38]} 11. Nbc3 {[%emt 0:00:01]} Nxd4 {[%emt 0:01:30]} 12. Nxd4 {[%emt 0:00:08]} cxd4 {[%emt 0:00:03]} 13. Na4 {[%emt 0:00:03]} Qa5 {[%emt 0:01:38]} 14. Bxd4 {[%emt 0:00:05]} Bxd4 {[%emt 0:00:11]} 15. Qxd4 {[%emt 0:00:02]} Nc6 {[%emt 0:00:02]} 16. Qd1 {[%emt 0:00:20]} Be6 {[%emt 0:00:02]} 17. Nc3 {[%emt 0:00:17]} Rfd8 {[%emt 0:00:08]} 18. Rc1 {[%emt 0:01:44]} Rac8 {[%emt 0:00:02]} 19. h3 {[%emt 0:01:03]} Bc4 {[%emt 0:00:21]} 20. Re1 {[%emt 0:01:14]} Nb4 {[%emt 0:00:05]} 21. b3 {[%emt 0:00:41]} Nd3 {[%emt 0:00:15]} 22. bxc4 {[%emt 0:00:32]} Nxc1 {[%emt 0:00:02]} 23. Nd5 {[%emt 0:00:10]} Rxc4 {[%emt 0:00:32]} 24. Bf1 {[%emt 0:00:37]} Rc5 {[%emt 0:00:03]} 25. Re3 {[%emt 0:00:46]} Nxa2 {[%emt 0:00:45]} 26. Nf6+ {[%emt 0:01:26]} Kg7 {[%emt 0:00:44]} 27. Qd4 {[%emt 0:00:36]} Re5 {[%emt 0:00:37]} 28. Ng4 {[%emt 0:00:33]} h5 {[%emt 0:00:36]} 29. Nxe5 {[%emt 0:00:20]} dxe5 {[%emt 0:00:03]} 30. Qa1 {[%emt 0:00:18]} Rd2 {[%emt 0:00:20]} 31. Re2 {[%emt 0:01:06]} Rxe2 {[%emt 0:00:13]} 32. Bxe2 {[%emt 0:00:00]} b6 {[%emt 0:00:11]} 33. Bc4 {[%emt 0:00:20]} Nc3 {[%emt 0:00:06]} 34. Qc1 {[%emt 0:00:06]} Nxe4 {[%emt 0:00:17]} 35. Qe3 {[%emt 0:00:00]} Qa1+ {[%emt 0:00:10]} 36. Kg2 {[%emt 0:00:04]} Qd4 {[%emt 0:00:02]} 0-1

[Event "British KO-ch Pre 2019"]
[Site "London"]
[Date "2019.11.30"]
[Round "1.4"]
[White "Haria, Ravi"]
[Black "Willow, Jonah B"]
[Result "1-0"]
[ECO "B31"]
[WhiteElo "2451"]
[BlackElo "2345"]
[Annotator "ChessBase"]
[PlyCount "97"]
[EventDate "2019.11.30"]
[EventType "k.o."]
[EventCountry "ENG"]
[SourceTitle "playchess.com"]
[Source "ChessBase"]
[SourceQuality "1"]
[TimeControl "600+5"]

1. Nf3 {[%emt 0:00:00]} c5 {[%emt 0:00:11]} 2. e4 {[%emt 0:00:00]} Nc6 {[%emt 0:00:12]} 3. Bb5 {[%emt 0:00:09]} g6 {[%emt 0:00:02]} 4. O-O {[%emt 0:00:15]} Bg7 {[%emt 0:00:03]} 5. Re1 {[%emt 0:00:04]} Nf6 {[%emt 0:00:09]} 6. c3 {[%emt 0:00:13]} O-O {[%emt 0:00:04]} 7. d4 {[%emt 0:00:00]} d5 {[%emt 0:00:02]} 8. e5 {[%emt 0:00:02]} Ne4 {[%emt 0:00:02]} 9. Bxc6 {[%emt 0:00:41]} bxc6 {[%emt 0:00:02]} 10. Be3 {[%emt 0:00:01]} Rb8 {[%emt 0:02:14]} 11. Qc1 {[%emt 0:01:01]} c4 {[%emt 0:01:32]} 12. Nbd2 {[%emt 0:00:19]} Nxd2 {[%emt 0:00:53]} 13. Nxd2 {[%emt 0:02:56]} c5 {[%emt 0:01:18]} 14. b3 cxd4 15. Bxd4 {[%emt 0:00:07]} Qc7 {[%emt 0:00:51]} 16. b4 {[%emt 0:01:01]} a5 {[%emt 0:00:18]} 17. a3 {[%emt 0:00:04]} Bf5 {[%emt 0:00:12]} 18. Nf1 {[%emt 0:00:05]} Bd3 {[%emt 0:00:21]} 19. Qe3 {[%emt 0:00:24]} axb4 {[%emt 0:00:35]} 20. axb4 {[%emt 0:00:05]} Ra8 {[%emt 0:00:01]} 21. Ng3 {[%emt 0:00:27]} Qc6 {[%emt 0:00:09]} 22. h4 {[%emt 0:00:31]} Qe6 {[%emt 0:00:39]} 23. h5 {[%emt 0:00:58]} Rxa1 {[%emt 0:00:39]} 24. Rxa1 {[%emt 0:00:02]} f6 {[%emt 0:00:11]} 25. h6 {[%emt 0:01:14]} Bh8 {[%emt 0:00:05]} 26. f4 {[%emt 0:00:10]} fxe5 {[%emt 0:00:24]} 27. fxe5 {[%emt 0:00:04]} Qg4 {[%emt 0:00:12]} 28. b5 {[%emt 0:00:10]} Be4 {[%emt 0:00:20]} 29. Nxe4 {[%emt 0:00:56]} dxe4 {[%emt 0:00:01]} 30. b6 {[%emt 0:00:03]} Qf5 {[%emt 0:00:09]} 31. Qe2 {[%emt 0:00:11]} Bxe5 {[%emt 0:00:16]} 32. Qxc4+ {[%emt 0:00:05]} e6 {[%emt 0:00:03]} 33. Bxe5 {[%emt 0:00:09]} Qxe5 {[%emt 0:00:03]} 34. Qd4 {[%emt 0:00:09]} Qxd4+ {[%emt 0:00:18]} 35. cxd4 {[%emt 0:00:01]} Rb8 {[%emt 0:00:01]} 36. Rb1 {[%emt 0:00:00]} Kf7 {[%emt 0:00:13]} 37. b7 {[%emt 0:00:09]} Ke7 {[%emt 0:00:13]} 38. Kf2 {[%emt 0:00:01]} Kd6 {[%emt 0:00:04]} 39. Ke3 {[%emt 0:00:02]} Kd5 {[%emt 0:00:05]} 40. Rb2 {[%emt 0:00:09]} e5 {[%emt 0:00:02]} 41. dxe5 {[%emt 0:00:08]} Kxe5 {[%emt 0:00:01]} 42. Rb5+ {[%emt 0:00:01]} Kd6 {[%emt 0:00:10]} 43. Kxe4 {[%emt 0:00:10]} Kc6 {[%emt 0:00:02]} 44. Rb2 {[%emt 0:00:04]} Kc7 {[%emt 0:00:04]} 45. Ke5 {[%emt 0:00:06]} Re8+ {[%emt 0:00:02]} 46. Kf6 {[%emt 0:00:02]} Kb8 {[%emt 0:00:01]} 47. Kg7 {[%emt 0:00:07]} Re7+ {[%emt 0:00:01]} 48. Kg8 {[%emt 0:00:01]} Rd7 {[%emt 0:00:16]} 49. Rf2 {[%emt 0:00:05]} 1-0

[Event "British KO-ch Pre 2019"]
[Site "London"]
[Date "2019.11.30"]
[Round "1.5"]
[White "Taylor, Adam C"]
[Black "Harvey, Marcus R"]
[Result "0-1"]
[ECO "A14"]
[WhiteElo "2371"]
[BlackElo "2405"]
[Annotator "ChessBase"]
[PlyCount "116"]
[EventDate "2019.11.30"]
[EventType "k.o."]
[EventCountry "ENG"]
[SourceTitle "playchess.com"]
[Source "ChessBase"]
[SourceQuality "1"]
[TimeControl "600+5"]

1. Nf3 {[%emt 0:00:00]} Nf6 {[%emt 0:00:00]} 2. c4 {[%emt 0:00:00]} b6 {[%emt 0:00:00]} 3. g3 {[%emt 0:00:01]} Bb7 {[%emt 0:00:00]} 4. Bg2 {[%emt 0:00:01]} e6 {[%emt 0:00:00]} 5. O-O {[%emt 0:00:09]} c5 {[%emt 0:00:01]} 6. Nc3 {[%emt 0:00:14]} Be7 {[%emt 0:00:01]} 7. b3 {[%emt 0:00:08]} d5 {[%emt 0:00:01]} 8. cxd5 {[%emt 0:00:37]} Nxd5 {[%emt 0:00:02]} 9. Nxd5 {[%emt 0:00:04]} Bxd5 {[%emt 0:00:03]} 10. Bb2 {[%emt 0:00:27]} O-O {[%emt 0:00:02]} 11. Qc2 {[%emt 0:00:56]} Nd7 {[%emt 0:00:44]} 12. Rfd1 {[%emt 0:00:09]} Rc8 {[%emt 0:00:05]} 13. Rac1 {[%emt 0:00:10]} Bf6 {[%emt 0:00:19]} 14. h4 {[%emt 0:00:59]} Bxb2 {[%emt 0:00:14]} 15. Qxb2 {[%emt 0:00:02]} Qf6 {[%emt 0:00:15]} 16. Qxf6 {[%emt 0:01:28]} Nxf6 {[%emt 0:00:06]} 17. d4 {[%emt 0:00:02]} c4 {[%emt 0:00:52]} 18. bxc4 {[%emt 0:01:28]} Bxc4 {[%emt 0:00:57]} 19. Rd2 {[%emt 0:00:08]} Ba6 {[%emt 0:00:21]} 20. Rdc2 {[%emt 0:00:10]} Rxc2 {[%emt 0:00:11]} 21. Rxc2 {[%emt 0:00:01]} Rc8 {[%emt 0:00:02]} 22. Rxc8+ {[%emt 0:00:10]} Bxc8 {[%emt 0:00:01]} 23. Ne5 {[%emt 0:00:09]} Kf8 {[%emt 0:00:12]} 24. g4 {[%emt 0:00:23]} h6 {[%emt 0:00:43]} 25. g5 {[%emt 0:00:31]} hxg5 26. hxg5 {[%emt 0:00:00]} Nd7 {[%emt 0:00:02]} 27. Nc6 {[%emt 0:00:39]} a5 {[%emt 0:00:01]} 28. f4 {[%emt 0:00:53]} Ba6 {[%emt 0:00:45]} 29. Kf2 {[%emt 0:00:01]} Bc4 {[%emt 0:00:49]} 30. a3 {[%emt 0:00:04]} Bd5 {[%emt 0:00:31]} 31. Bxd5 {[%emt 0:00:29]} exd5 {[%emt 0:00:01]} 32. Na7 {[%emt 0:00:01]} Ke7 {[%emt 0:00:05]} 33. Kf3 {[%emt 0:00:20]} Ke6 {[%emt 0:00:57]} 34. Nb5 {[%emt 0:00:27]} g6 {[%emt 0:00:01]} 35. e3 {[%emt 0:00:25]} f6 {[%emt 0:02:00]} 36. gxf6 {[%emt 0:00:03]} Nxf6 {[%emt 0:00:04]} 37. Nc3 {[%emt 0:00:25]} Kd6 {[%emt 0:00:04]} 38. a4 {[%emt 0:00:20]} Kc6 {[%emt 0:00:01]} 39. Nb5 {[%emt 0:00:24]} Ne4 {[%emt 0:00:07]} 40. Na7+ {[%emt 0:00:01]} Kd7 {[%emt 0:00:15]} 41. Nb5 {[%emt 0:00:04]} Nd6 {[%emt 0:01:41]} 42. Nc3 {[%emt 0:00:01]} Kc6 {[%emt 0:00:05]} 43. Kg4 {[%emt 0:00:10]} b5 {[%emt 0:00:06]} 44. axb5+ {[%emt 0:00:01]} Nxb5 {[%emt 0:00:02]} 45. Na4 {[%emt 0:00:17]} Nd6 {[%emt 0:00:03]} 46. Kg5 {[%emt 0:00:04]} Kb5 {[%emt 0:00:15]} 47. Nb2 {[%emt 0:00:03]} Nc4 {[%emt 0:00:07]} 48. Nd3 {[%emt 0:00:06]} Nxe3 {[%emt 0:00:10]} 49. Kxg6 {[%emt 0:00:05]} Kc4 {[%emt 0:00:09]} 50. Ne5+ {[%emt 0:00:11]} Kc3 {[%emt 0:00:01]} 51. Nc6 {[%emt 0:00:07]} a4 {[%emt 0:00:01]} 52. Na7 {[%emt 0:00:01]} Kc4 {[%emt 0:00:07]} 53. f5 {[%emt 0:00:08]} Nxf5 {[%emt 0:00:06]} 54. Kxf5 {[%emt 0:00:00]} a3 {[%emt 0:00:01]} 55. Nc6 {[%emt 0:00:01]} a2 {[%emt 0:00:01]} 56. Ke5 {[%emt 0:00:05]} a1=Q {[%emt 0:00:05]} 57. Ne7 {[%emt 0:00:00]} Qxd4+ {[%emt 0:00:03]} 58. Kd6 {[%emt 0:00:01]} Qf6+ {[%emt 0:00:02]} 0-1

[Event "British KO-ch Pre 2019"]
[Site "London"]
[Date "2019.11.30"]
[Round "1.6"]
[White "McPhillips, Joseph"]
[Black "Golding, Alex"]
[Result "0-1"]
[ECO "A06"]
[WhiteElo "2434"]
[BlackElo "2306"]
[Annotator "ChessBase"]
[PlyCount "102"]
[EventDate "2019.11.30"]
[EventType "k.o."]
[EventCountry "ENG"]
[SourceTitle "playchess.com"]
[Source "ChessBase"]
[SourceQuality "1"]
[TimeControl "600+5"]

1. Nf3 {[%emt 0:00:00]} d5 {[%emt 0:00:00]} 2. b3 {[%emt 0:00:00]} c5 {[%emt 0:00:02]} 3. e3 {[%emt 0:00:00]} Nc6 {[%emt 0:00:10]} 4. Bb5 {[%emt 0:00:27]} a6 {[%emt 0:01:07]} 5. Bxc6+ {[%emt 0:00:03]} bxc6 {[%emt 0:00:01]} 6. Bb2 {[%emt 0:00:02]} f6 {[%emt 0:00:03]} 7. d3 {[%emt 0:00:08]} e5 {[%emt 0:00:21]} 8. c4 {[%emt 0:00:23]} Be6 {[%emt 0:00:12]} 9. Nc3 {[%emt 0:00:08]} Bd6 {[%emt 0:00:37]} 10. Na4 {[%emt 0:00:06]} Qe7 {[%emt 0:00:47]} 11. Rc1 {[%emt 0:00:06]} Nh6 {[%emt 0:00:03]} 12. Ba3 {[%emt 0:00:15]} d4 {[%emt 0:00:04]} 13. Qd2 {[%emt 0:00:51]} a5 {[%emt 0:00:01]} 14. h3 {[%emt 0:01:20]} Nf7 {[%emt 0:00:04]} 15. e4 {[%emt 0:00:17]} g5 {[%emt 0:00:11]} 16. Kd1 {[%emt 0:00:12]} h5 {[%emt 0:00:44]} 17. Kc2 {[%emt 0:00:03]} Rh7 {[%emt 0:00:38]} 18. Rce1 {[%emt 0:00:04]} Nh8 {[%emt 0:00:09]} 19. Bc1 {[%emt 0:00:30]} Ng6 {[%emt 0:00:03]} 20. Qe2 {[%emt 0:00:07]} Qa7 {[%emt 0:00:56]} 21. Bd2 {[%emt 0:00:03]} Nf8 {[%emt 0:00:15]} 22. h4 {[%emt 0:00:13]} g4 {[%emt 0:00:01]} 23. Nh2 {[%emt 0:00:02]} Nd7 {[%emt 0:00:35]} 24. f3 {[%emt 0:00:02]} g3 {[%emt 0:00:24]} 25. Nf1 {[%emt 0:00:02]} Rg7 {[%emt 0:00:02]} 26. Bh6 {[%emt 0:00:43]} Rg6 {[%emt 0:00:05]} 27. Bc1 {[%emt 0:00:05]} Nb6 {[%emt 0:00:09]} 28. Nd2 {[%emt 0:00:18]} Rb8 {[%emt 0:00:41]} 29. Ba3 {[%emt 0:00:02]} Nc8 {[%emt 0:00:01]} 30. f4 {[%emt 0:00:19]} Bg4 {[%emt 0:00:04]} 31. Nf3 {[%emt 0:00:02]} exf4 {[%emt 0:00:07]} 32. e5 {[%emt 0:00:00]} fxe5 {[%emt 0:00:19]} 33. Qe4 {[%emt 0:00:02]} Ne7 {[%emt 0:00:09]} 34. Nxe5 {[%emt 0:00:20]} Re6 {[%emt 0:00:09]} 35. Qxf4 {[%emt 0:00:03]} Ng6 {[%emt 0:00:10]} 36. Bxc5 {[%emt 0:02:02]} Nxf4 {[%emt 0:00:41]} 37. Bxa7 {[%emt 0:00:02]} Bxe5 {[%emt 0:00:16]} 38. Bxb8 {[%emt 0:01:27]} Bxb8 {[%emt 0:00:03]} 39. Nc5 {[%emt 0:00:05]} Re3 {[%emt 0:00:33]} 40. Rxe3+ {[%emt 0:00:20]} dxe3 {[%emt 0:00:00]} 41. Rg1 {[%emt 0:00:01]} Ba7 {[%emt 0:00:04]} 42. d4 {[%emt 0:00:12]} Bf5+ {[%emt 0:00:15]} 43. Kd1 {[%emt 0:00:07]} Bxc5 {[%emt 0:00:08]} 44. dxc5 {[%emt 0:00:01]} Bd3 {[%emt 0:00:02]} 45. a3 {[%emt 0:00:40]} Ke7 {[%emt 0:00:02]} 46. b4 {[%emt 0:00:01]} axb4 {[%emt 0:00:01]} 47. axb4 {[%emt 0:00:02]} Bxc4 {[%emt 0:00:02]} 48. Kc2 {[%emt 0:00:01]} Bd5 {[%emt 0:00:07]} 49. Rf1 {[%emt 0:00:23]} e2 {[%emt 0:00:05]} 50. Re1 {[%emt 0:00:08]} Bxg2 {[%emt 0:00:01]} 51. Kd2 {[%emt 0:00:01]} Bf1 {[%emt 0:00:01]} 0-1

[Event "British KO-ch Pre 2019"]
[Site "London"]
[Date "2019.11.30"]
[Round "1.7"]
[White "Kalaiyalahan, Akshaya"]
[Black "Horton, Andrew P"]
[Result "0-1"]
[ECO "A05"]
[WhiteElo "2154"]
[BlackElo "2378"]
[Annotator "ChessBase"]
[PlyCount "126"]
[EventDate "2019.11.30"]
[EventType "k.o."]
[EventCountry "ENG"]
[SourceTitle "playchess.com"]
[Source "ChessBase"]
[SourceQuality "1"]
[TimeControl "600+5"]

1. Nf3 {[%emt 0:00:00]} Nf6 {[%emt 0:00:00]} 2. g3 {[%emt 0:00:00]} b5 {[%emt 0:00:00]} 3. Bg2 {[%emt 0:00:02]} Bb7 {[%emt 0:00:00]} 4. O-O {[%emt 0:00:08]} e6 {[%emt 0:00:04]} 5. d3 {[%emt 0:00:20]} Be7 {[%emt 0:00:13]} 6. c4 {[%emt 0:00:06]} bxc4 {[%emt 0:00:52]} 7. dxc4 {[%emt 0:00:04]} O-O {[%emt 0:00:06]} 8. Nc3 {[%emt 0:00:02]} d6 {[%emt 0:01:22]} 9. Qc2 {[%emt 0:02:20]} Nbd7 {[%emt 0:01:54]} 10. Rd1 {[%emt 0:00:59]} Qc8 {[%emt 0:00:21]} 11. b3 {[%emt 0:01:00]} Re8 {[%emt 0:00:07]} 12. Bb2 {[%emt 0:00:46]} Nc5 {[%emt 0:00:47]} 13. Ne1 {[%emt 0:01:36]} Bxg2 {[%emt 0:00:08]} 14. Nxg2 {[%emt 0:00:03]} Qb7 {[%emt 0:00:12]} 15. Nf4 {[%emt 0:00:43]} Nce4 {[%emt 0:01:07]} 16. Nxe4 {[%emt 0:00:08]} Qxe4 {[%emt 0:00:17]} 17. Qxe4 {[%emt 0:00:10]} Nxe4 {[%emt 0:00:01]} 18. f3 {[%emt 0:00:12]} Nf6 {[%emt 0:00:40]} 19. e4 {[%emt 0:00:19]} Nd7 {[%emt 0:00:22]} 20. Ne2 {[%emt 0:00:09]} a5 {[%emt 0:00:08]} 21. Nc3 {[%emt 0:00:05]} Bf6 {[%emt 0:00:11]} 22. Na4 {[%emt 0:00:28]} Bxb2 {[%emt 0:00:13]} 23. Nxb2 {[%emt 0:00:02]} Nc5 {[%emt 0:00:11]} 24. Nd3 {[%emt 0:00:03]} Nxd3 {[%emt 0:00:44]} 25. Rxd3 {[%emt 0:00:02]} Red8 {[%emt 0:01:17]} 26. a4 {[%emt 0:00:13]} Kf8 {[%emt 0:00:12]} 27. Kf2 {[%emt 0:00:03]} Ke7 {[%emt 0:00:01]} 28. Ke3 {[%emt 0:00:01]} Rab8 {[%emt 0:00:02]} 29. Rc1 {[%emt 0:00:01]} Rb4 {[%emt 0:00:18]} 30. Kd2 {[%emt 0:00:43]} Rdb8 {[%emt 0:00:10]} 31. Rcc3 {[%emt 0:00:07]} Rd8 {[%emt 0:00:03]} 32. Kc2 {[%emt 0:00:02]} h5 {[%emt 0:00:04]} 33. c5 {[%emt 0:00:31]} d5 {[%emt 0:00:03]} 34. exd5 {[%emt 0:00:08]} exd5 {[%emt 0:00:04]} 35. Kd2 {[%emt 0:00:38]} c6 {[%emt 0:00:24]} 36. Rc1 {[%emt 0:00:03]} Rdb8 {[%emt 0:00:05]} 37. Kc2 {[%emt 0:00:04]} Kd7 {[%emt 0:00:06]} 38. Re1 {[%emt 0:00:08]} Re8 {[%emt 0:00:01]} 39. Rxe8 {[%emt 0:00:04]} Kxe8 {[%emt 0:00:00]} 40. Kc3 {[%emt 0:00:08]} Kd7 {[%emt 0:00:06]} 41. Rd4 {[%emt 0:00:08]} Rb8 {[%emt 0:00:03]} 42. b4 {[%emt 0:00:20]} axb4+ {[%emt 0:00:17]} 43. Rxb4 {[%emt 0:00:01]} Rxb4 {[%emt 0:00:10]} 44. Kxb4 {[%emt 0:00:02]} Kc7 {[%emt 0:00:01]} 45. Kc3 {[%emt 0:00:16]} Kb7 {[%emt 0:00:05]} 46. Kb3 {[%emt 0:00:03]} Ka6 {[%emt 0:00:01]} 47. Kb4 {[%emt 0:00:01]} f6 {[%emt 0:00:08]} 48. h3 {[%emt 0:00:02]} g5 {[%emt 0:00:05]} 49. h4 {[%emt 0:00:05]} Kb7 {[%emt 0:00:07]} 50. f4 {[%emt 0:00:09]} gxh4 {[%emt 0:00:07]} 51. gxh4 {[%emt 0:00:01]} Ka7 {[%emt 0:00:03]} 52. Kc3 {[%emt 0:00:10]} Kb7 {[%emt 0:00:04]} 53. Kb3 {[%emt 0:00:06]} Ka6 {[%emt 0:00:02]} 54. Kb4 {[%emt 0:00:01]} Ka7 {[%emt 0:00:06]} 55. Kb3 {[%emt 0:00:02]} Kb8 {[%emt 0:00:03]} 56. f5 {[%emt 0:00:09]} Kb7 {[%emt 0:00:03]} 57. Kc3 {[%emt 0:00:02]} Ka6 {[%emt 0:00:01]} 58. Kb4 {[%emt 0:00:02]} d4 {[%emt 0:00:10]} 59. Kc4 {[%emt 0:00:08]} Ka5 {[%emt 0:00:00]} 60. Kxd4 {[%emt 0:00:01]} Kxa4 {[%emt 0:00:01]} 61. Kc4 {[%emt 0:00:18]} Ka5 {[%emt 0:00:04]} 62. Kc3 {[%emt 0:00:08]} Kb5 {[%emt 0:00:01]} 63. Kd4 {[%emt 0:00:01]} Kb4 {[%emt 0:00:01]} 0-1

[Event "British KO-ch Pre 2019"]
[Site "London"]
[Date "2019.11.30"]
[Round "1.8"]
[White "Toma, Katarzyna"]
[Black "Head, Louise"]
[Result "0-1"]
[ECO "B12"]
[WhiteElo "2272"]
[BlackElo "2100"]
[Annotator "ChessBase"]
[PlyCount "70"]
[EventDate "2019.11.30"]
[EventType "k.o."]
[EventCountry "ENG"]
[SourceTitle "playchess.com"]
[Source "ChessBase"]
[SourceQuality "1"]
[TimeControl "600+5"]

1. e4 {[%emt 0:00:00]} c6 {[%emt 0:00:00]} 2. d4 {[%emt 0:00:00]} d5 {[%emt 0:00:00]} 3. e5 {[%emt 0:00:12]} c5 {[%emt 0:00:00]} 4. dxc5 {[%emt 0:00:07]} e6 {[%emt 0:00:00]} 5. a3 {[%emt 0:00:06]} Bxc5 {[%emt 0:00:05]} 6. b4 {[%emt 0:00:06]} Bf8 {[%emt 0:00:04]} 7. Bb2 {[%emt 0:00:02]} a5 {[%emt 0:00:29]} 8. b5 {[%emt 0:00:41]} Nd7 {[%emt 0:00:10]} 9. Nf3 {[%emt 0:00:20]} Bc5 {[%emt 0:00:34]} 10. Qd2 {[%emt 0:00:26]} Ne7 {[%emt 0:00:30]} 11. Bd3 {[%emt 0:00:10]} Bb6 {[%emt 0:01:23]} 12. Qg5 {[%emt 0:01:54]} Ng6 {[%emt 0:00:17]} 13. Qg3 {[%emt 0:00:02]} Nc5 {[%emt 0:00:13]} 14. h4 {[%emt 0:00:22]} Nxd3+ {[%emt 0:00:03]} 15. cxd3 {[%emt 0:00:01]} h5 {[%emt 0:00:18]} 16. Nbd2 {[%emt 0:00:24]} a4 {[%emt 0:00:10]} 17. Ng5 {[%emt 0:00:18]} Bd7 {[%emt 0:00:27]} 18. Qf3 {[%emt 0:00:02]} Qe7 {[%emt 0:00:05]} 19. Bc3 {[%emt 0:00:15]} Ba5 {[%emt 0:00:07]} 20. Bd4 {[%emt 0:01:47]} Nxh4 {[%emt 0:01:10]} 21. Rxh4 {[%emt 0:01:50]} Qxg5 {[%emt 0:00:03]} 22. Rf4 {[%emt 0:00:27]} Rc8 {[%emt 0:00:12]} 23. Kd1 {[%emt 0:00:18]} Qg6 {[%emt 0:00:11]} 24. Rb1 {[%emt 0:00:15]} Bc3 {[%emt 0:01:12]} 25. Bxc3 {[%emt 0:00:26]} Rxc3 {[%emt 0:00:02]} 26. Rxa4 {[%emt 0:00:01]} O-O {[%emt 0:00:24]} 27. Ke2 {[%emt 0:00:32]} f6 {[%emt 0:00:13]} 28. exf6 {[%emt 0:00:28]} Rxf6 {[%emt 0:00:08]} 29. Qg3 {[%emt 0:00:12]} Qxg3 {[%emt 0:01:12]} 30. fxg3 {[%emt 0:00:01]} Rg6 {[%emt 0:00:25]} 31. Nf1 {[%emt 0:00:22]} Rc2+ {[%emt 0:00:13]} 32. Kf3 {[%emt 0:00:01]} e5 {[%emt 0:00:04]} 33. Ra8+ {[%emt 0:00:02]} Kh7 {[%emt 0:00:01]} 34. Rf8 {[%emt 0:00:12]} Bg4+ {[%emt 0:00:02]} 35. Ke3 {[%emt 0:00:03]} Re2# {[%emt 0:00:08] Kd4} 0-1